Cogmind - Beta 10.2 @@@ ROGUE MODE // 2020.12.29 @ 02:15:35 Player: aperiodic Result: Destroyed by 8R-AWN with 8R-AWN's Boregun Performance ------------- Evolutions (0) 0 Regions Visited (3) 600 Robots Destroyed (10) 50 Value Destroyed (148) 148 Prototype IDs (26) 520 Alien Tech Used (0) 0 Bonus (340) 340 TOTAL SCORE: 1658 Bonus ------- Follower Combat Kills 145 Aligned with FarCom 300 Friendly Fire -105 Cogmind --------- Core Integrity 0/250 Matter 177/300 Energy 100/100 System Corruption 2% Temperature Cool (0) Movement Core (1450) Ox28 Location -10/Exiles Parts ------- > --- POWER (1) -------- (None) > --- PROPULSION (2) --- (None) > --- UTILITY (2) ------ Humpback > --- WEAPON (2) ------- Heavy Assault Rifle Heavy Assault Rifle > --- INVENTORY (24) --- Wheel Wheel High-capacity Matter Pod (200) Improved Targeting Computer Hacking Suite Guided Plasma Cannon Heavy Assault Rifle Grenade Launcher Peak State ------------ > --- POWER ------------ Ion Engine > --- PROPULSION ------- Light Treads Light Treads > --- UTILITY ---------- Humpback > --- WEAPON ----------- Guided Plasma Cannon Heavy Assault Rifle > --- INVENTORY -------- Light Ion Engine Wheel Wheel High-capacity Matter Pod High-capacity Matter Pod Improved Targeting Computer Hacking Suite Heavy Assault Rifle Heavy Assault Rifle Heavy Assault Rifle Grenade Launcher [Rating: 16] Favorites ----------- Power Ion Engine Engine Ion Engine Propulsion Wheel Treads Light Treads Wheel Wheel Utility Large Storage Unit Storage Large Storage Unit Weapon EM Pulse Gun Energy Gun EM Pulse Gun Energy Cannon EM Pulse Cannon Ballistic Gun Heavy Assault Rifle Launcher Grenade Launcher Build | -11 -10 -10 -10 ------- Run | Scr Mat Min Exi Slots Evolved . | . . . . Power . | . . . . Propulsion . | . . . . Utility . | . . . . Weapon . | . . . . Parts Attached 21 | 8 2 1 10 Power 2 | 1 . . 1 Engine 2 | 1 . . 1 Core . | . . . . Reactor . | . . . . Propulsion 5 | 3 . . 2 Treads 2 | . . . 2 Leg . | . . . . Wheel 3 | 3 . . . Hover . | . . . . Flight . | . . . . Utility 4 | 1 2 . 1 Device . | . . . . Storage 4 | 1 2 . 1 Processor . | . . . . Hackware . | . . . . Protection . | . . . . Artifact . | . . . . Weapon 10 | 3 . 1 6 Energy Gun 3 | 3 . . . Energy Cannon 2 | . . 1 1 Ballistic Gun 4 | . . . 4 Ballistic Cannon . | . . . . Launcher 1 | . . . 1 Special Weapon . | . . . . Impact Weapon . | . . . . Slashing Weapon . | . . . . Piercing Weapon . | . . . . Special Melee Weapon . | . . . . Unidentified Prototypes . | . . . . Parts Lost 5 | . . . 5 Power 2 | . . . 2 Propulsion 2 | . . . 2 Utility . | . . . . Weapon 1 | . . . 1 Highest Loss Streak 4 | . . . 4 Average Slot Usage (%) 91 | . 96 100 85 Engine 13 | . 14 14 13 Treads 1 | . . . 2 Wheel 25 | . 28 28 24 Storage 21 | . 25 28 15 Energy Gun 13 | . 28 17 6 Energy Cannon 7 | . . 10 7 Ballistic Gun 4 | . . . 8 Launcher 2 | . . . 4 Naked Turns . | . . . . Heaviest Build 98 | 13 41 45 98 Greatest Support 40 | 26 20 20 40 Greatest Overweight (x) 4 | . 2 2 4 Average Overweight (x) 2 | . 1 2 3 Largest Inventory Capacity 24 | 6 16 16 24 Average Capacity 18 | 5 13 16 22 Most Carried 21 | 6 15 16 21 Average Carried 14 | 4 10 15 15 Final Capacity 24 | 6 16 16 24 Final Carried 16 | 6 15 16 8 Class Distribution -------------------- 56% | Mutant 43% | Hauler-Mutant Dominant Class ---------------- Mutant | -10/Materials Mutant | -10/Mines Hauler-Mutant | -10/Exiles Resources | -11 -10 -10 -10 ----------- Run | Scr Mat Min Exi Matter Collected 846 | 157 110 193 386 Remotely . | . . . . Salvage Created 316 | 52 124 114 26 Parts 20 | 8 3 8 1 Haulers Intercepted . | . . . . Recyclers Shooed . | . . . . Parts Field Recycled . | . . . . Retrieved Matter . | . . . . Parts Self-Destructed . | . . . . Prevented . | . . . . Kills | -11 -10 -10 -10 ------- Run | Scr Mat Min Exi Combat Hostiles Destroyed 12 | . 2 3 7 Guns 3 | . 1 2 . Cannons 1 | . . 1 . AOE 8 | . 1 . 7 Classes Destroyed 6 | 1 1 2 2 Tunneler 3 | 3 . . . Recycler 1 | . . 1 . Swarmer 3 | . . 3 . Grunt 2 | . 2 . . Zionite 1 | . . . 1 Assembled 7 | . . . 7 Best Kill Streak 8 | 2 2 3 8 Combat Bots Only 7 | . 2 3 7 Max Kills in Single Turn 3 | 1 1 2 3 Gunslinging . | . . . . Exploded 3 | . 1 . 3 Melee . | . . . . Uniques/NPCs Destroyed . | . . . . Combat | -11 -10 -10 -10 -------- Run | Scr Mat Min Exi Damage Taken 1289 | . 54 54 1181 Core 252 | . 25 . 227 Absorbed by Shields . | . . . . Core Remaining (%) 100 | 100 . . . Volleys Fired 58 | 7 5 6 40 Largest 2 | 2 2 2 2 Hottest 120 | 80 80 103 120 Shots Fired 105 | 14 10 12 69 Gun 89 | 14 10 6 59 Cannon 8 | . . 6 2 Launcher 8 | . . . 8 Special . | . . . . Kinetic 59 | . . . 59 Thermal 2 | . . . 2 Explosive 8 | . . . 8 Electromagnetic 36 | 14 10 12 . Robot Hit Streak 15 | 2 5 6 15 Robot Miss Streak 4 | 4 2 1 2 Penetration Max . | . . . . Secondary Targets . | . . . . Shots Hit Robots 67 | 6 6 8 47 Core Hits 34 | 3 3 5 23 Critical Hits 1 | . . . 1 Critical Kills . | . . . . Critical Parts Destroyed . | . . . . Melee Attacks . | . . . . Impact . | . . . . Slashing . | . . . . Piercing . | . . . . Sneak Attacks . | . . . . Combat Hostiles . | . . . . Follow-up Attacks . | . . . . Damage Inflicted 1609 | 75 133 154 1247 Guns 899 | 75 83 78 663 Cannons 151 | . . 76 75 Explosions 559 | . 50 . 509 Melee . | . . . . Ramming . | . . . . Kinetic 663 | . . . 663 Thermal 125 | . 50 . 75 Explosive 509 | . . . 509 Electromagnetic 312 | 75 83 154 . Impact . | . . . . Slashing . | . . . . Piercing . | . . . . Highest Corruption 2 | . 2 2 2 Average Corruption 2 | . 2 2 2 Corruption Purged . | . . . . Effects 17 | . . 5 12 Message Errors 6 | . . 2 4 Heat Flow Errors 5 | . . 2 3 Energy Discharges 3 | . . 1 2 Data Loss (minor) 3 | . . . 3 Overload Shots . | . . . . Overflow Damage 16 | . . . 16 Projectiles . | . . . . Explosions 16 | . . . 16 Melee . | . . . . Knockbacks . | . . . . Impact . | . . . . Kinetic . | . . . . Secondary . | . . . . Self-Inflicted Damage 4 | . . . 4 Shots 1 | . . . 1 Rammed . | . . . . Targets Rammed . | . . . . Kicked . | . . . . Crushed . | . . . . Highest Temperature 244 | 54 93 102 244 Average Temperature 54 | 22 45 36 87 Received Heat Transfer 94 | . 30 15 49 Siege Activations . | . . . . Robots Corrupted . | . . . . Combat Hostiles . | . . . . Parts Fried . | . . . . Impact Corruptions . | . . . . Robots Melted . | . . . . Combat Hostiles . | . . . . Parts Melted . | . . . . Heat Transferred 210 | . 50 . 160 Parts Sabotaged . | . . . . Parts Stolen . | . . . . Parts Stripped . | . . . . Power Chain Reactions 1 | . 1 . . Missiles Intercepted . | . . . . Alert | -11 -10 -10 -10 ------- Run | Scr Mat Min Exi Peak Influence 153 | 15 77 153 . Initial 9 | . 9 . . Average 42 | 4 19 64 . Maximum Alert Level . | . . . . Low Security (%) 100 | 100 100 100 . Level 1 . | . . . . Level 2 . | . . . . Level 3 . | . . . . Level 4 . | . . . . Level 5 . | . . . . High Security . | . . . . Max Security . | . . . . Squads Dispatched 2 | . 1 1 . Investigation 1 | . . 1 . Extermination . | . . . . Reinforcement 1 | . 1 . . Assault . | . . . . Garrison . | . . . . Intercept . | . . . . Construction Impeded . | . . . . Haulers Reinforced . | . . . . Stealth | -11 -10 -10 -10 --------- Run | Scr Mat Min Exi Distress Signals 1 | . 1 . . Communications Jammed . | . . . . Distress Signals . | . . . . Times Spotted 21 | . 3 7 11 Peak Tracking Total 12 | . 2 3 12 Tactical Retreats 1 | . . . 1 Traps | -11 -10 -10 -10 ------- Run | Scr Mat Min Exi Traps Triggered 1 | . 1 . . Indirectly . | . . . . Trap Hack Attempts . | . . . . Triggered . | . . . . Disarmed . | . . . . Reprogrammed . | . . . . Reused . | . . . . Traps Extracted . | . . . . Installed . | . . . . Triggered . | . . . . Machines | -11 -10 -10 -10 ---------- Run | Scr Mat Min Exi Machines Disabled 5 | . . . 5 Max in Single Turn 2 | . . . 2 Machines Sabotaged . | . . . . Garrisons Compromised . | . . . . Overloaded Fab Kills . | . . . . Fab Network Shutdowns . | . . . . Hacking | -11 -10 -10 -10 --------- Run | Scr Mat Min Exi Machines Accessed 10 | . 6 2 2 Terminals 7 | . 6 1 . Fabricators . | . . . . Repair Stations . | . . . . Recycling Units . | . . . . Scanalyzers . | . . . . Garrison Access . | . . . . Total Hacks 26 | . 21 3 2 Successful 12 | . 9 1 2 Failed 13 | . 11 2 . Catastrophic . | . . . . Database Lockouts 1 | . 1 . . Manual 15 | . 12 2 1 Terminals 23 | . 21 2 . Fabricators . | . . . . Repair Stations . | . . . . Recycling Units . | . . . . Scanalyzers . | . . . . Garrison Access . | . . . . Terminal Hacks 10 | . 7 1 2 Record 1 | . . . 1 Prototype ID Bank 2 | . 2 . . Open Door 1 | . . 1 . Terminal Index 1 | . 1 . . Alert Level 1 | . 1 . . Locate Traps 2 | . 2 . . Zone Layout 1 | . 1 . . EX-Prototype ID Bank 1 | . . . 1 Fabricator Hacks . | . . . . Repair Station Hacks . | . . . . Recycling Unit Hacks . | . . . . Scanalyzer . | . . . . Garrison Access Hacks . | . . . . Unauthorized Hacks 2 | . 2 . . Terminals 2 | . 2 . . Track 1 | . 1 . . Operators 1 | . 1 . . Fabricators . | . . . . Repair Stations . | . . . . Recycling Units . | . . . . Scanalyzers . | . . . . Garrison Access . | . . . . Data Cores Recovered . | . . . . Used . | . . . . Hacking Detections 7 | . 6 1 . Full Trace Events . | . . . . Feedback Events . | . . . . Feedback Blocked . | . . . . Robot Schematics Acquired . | . . . . Robots Built . | . . . . Matter . | . . . . Time . | . . . . Total Robot Build Rating . | . . . . Part Schematics Acquired . | . . . . Parts Built . | . . . . Matter . | . . . . Time . | . . . . Total Part Build Rating . | . . . . Parts Repaired . | . . . . Time . | . . . . Parts Recycled . | . . . . Recycled Matter . | . . . . Retrieved Matter . | . . . . Retrieved Components . | . . . . Parts Scanalyzed . | . . . . Part Schematics Acquired . | . . . . Parts Damaged . | . . . . Bothacking | -11 -10 -10 -10 ------------ Run | Scr Mat Min Exi Used RIF Installer . | . . . . Robots Hacked . | . . . . Non-combat . | . . . . Combat . | . . . . Robot Hacks Applied . | . . . . Relay Couplers Released . | . . . . Robots Rewired . | . . . . Allies Hacked . | . . . . Hacks Repelled . | . . . . Allies | -11 -10 -10 -10 -------- Run | Scr Mat Min Exi Total Allies 3 | . . 3 . Largest Group 3 | . . 3 . Highest-Rated Group 40 | . . 40 . Highest-Rated Ally 16 | . . 16 . Total Orders . | . . . . Ally Attacks 20 | . . 20 . Total Damage 240 | . . 240 . Kills 5 | . . 5 . Allies Corrupted . | . . . . Allies Melted . | . . . . Intel | -11 -10 -10 -10 ------- Run | Scr Mat Min Exi Robot Analysis Total . | . . . . Derelict Logs Recovered 1 | . . 1 . Drone Launches . | . . . . Drone Recoveries . | . . . . Exploration | -11 -10 -10 -10 ------------- Run | Scr Mat Min Exi Turns Passed 2459 | 89 489 650 1231 Spaces Moved 1997 | 64 437 595 901 Core 16 | 16 . . . Treads 18 | . . . 18 Legs . | . . . . Wheels 1963 | 48 437 595 883 Hover . | . . . . Flight . | . . . . Fastest Speed 50 | 50 80 100 80 Average Speed 106 | 76 95 100 117 Slowest Speed 200 | 100 100 100 200 Overloaded Moves . | . . . . Propulsion Burnouts . | . . . . Robots Hopped . | . . . . Cave-ins Triggered . | . . . . Exploration Rate (%) 59 | 3 68 93 72 Regions Visited 3 Branch Regions 2 Pre-discovered Areas 2 | . . 1 1 Known Exits Taken . | . . . . Unknown Exits Taken 3 | 1 1 1 . Scrap Searched 1 | . . 1 . Spaces Dug . | . . . . Terrain Destroyed 27 | . . . 27 Melee . | . . . . Projectile . | . . . . AOE 27 | . . . 27 Terrain Rammed . | . . . . Walls Destroyed . | . . . . Machines Disabled . | . . . . Actions | -11 -10 -10 -10 --------- Run | Scr Mat Min Exi Total 2230 | 86 498 638 1008 Wait 94 | . 42 35 17 Move 1994 | 63 436 594 901 Hop . | . . . . Pick Up 41 | 7 11 1 22 Fast Attach 9 | 6 1 1 1 Attach 2 | . . . 2 Detach . | . . . . Swap 10 | 2 1 . 7 Drop 22 | 1 2 1 18 Fire 58 | 7 5 6 40 Melee . | . . . . Ram . | . . . . Kick . | . . . . Crush . | . . . . Escape Stasis . | . . . . Rewire . | . . . . Trap . | . . . . Miscellaneous . | . . . . Route ------- -11/Scrapyard -10/Materials (discovered 3 exits: [*Mat x2] / *Min) -10/Mines (discovered 3 exits: [*Mat x2] / *Exi) -10/Exiles (discovered 2 exits: [*Min x2]) History --------- Turn | Location | Event 3 | -11/Scrapyard | Discovered new exit (range 15) 90 | -11/Scrapyard | Entered Materials 288 | -10/Materials | Central database locked down 304 | -10/Materials | Build established: Mutant 307 | -10/Materials | Discovered new exit (range 16) 445 | -10/Materials | Discovered new exit (range 9) 506 | -10/Materials | Discovered new exit (range 9) 579 | -10/Materials | Entered Mines 583 | -10/Mines | Learned location of Mines (-9) 591 | -10/Mines | Assisted by bots powering up and referring to "LRC-V3" 689 | -10/Mines | Discovered new exit (range 8) 706 | -10/Mines | Met a Derelict shopkeep closing up shop 922 | -10/Mines | Discovered new exit (range 13) 950 | -10/Mines | Deemed a non-threat by the Exiles lab entrance 1225 | -10/Mines | Discovered new exit (range 5) 1229 | -10/Mines | Entered Exiles 1242 | -10/Exiles | Discovered new exit (range 15) 1254 | -10/Exiles | Met 8R-AWN 1271 | -10/Exiles | Met EX-HEX 1308 | -10/Exiles | Met EX-DEC 1317 | -10/Exiles | Learned location of Zion (-6) 1584 | -10/Exiles | Met EX-BIN 1601 | -10/Exiles | Aligned with FarCom system 1602 | -10/Exiles | Given EX-Vault access code 1632 | -10/Exiles | Opened EX-Vault 1642 | -10/Exiles | Found Gui. Plasma Cannon 1670 | -10/Exiles | Warned to stay clear of 0b10 Research branches 1685 | -10/Exiles | Build established: Hauler-Mutant 1865 | -10/Exiles | Discovered new exit (range 12) 2268 | -10/Exiles | Attacked by the Exiles 2332 | -10/Exiles | Destroyed 7 combat bots 2395 | -10/Exiles | Core integrity fell below 50% 2436 | -10/Exiles | Core integrity fell below 20% 2441 | -10/Exiles | Lost 4 parts (2p1n1w) 2460 | -10/Exiles | Destroyed by 8R-AWN with 8R-AWN's Boregun Last Messages --------------- 02403_ HV Slug penetrates Wall. 02403_ HV Slug penetrates Earth. 02406_ Penetrated by HV Slug. 02406_ Critical hit. 02406_ Lgt. Treads destroyed. 02407_ Destroyed Prototype Protection. 02408_ Penetrated by HV Slug. 02410_ Hvy. Assault Rifle destroyed. 02413_ Penetrated by HV Slug. 02436_ System corrupted: Energy discharge (-40). 02439_ Penetrated by HV Slug. 02439_ HV Slug penetrates Wall. 02439_ HV Slug penetrates Earth. 02443_ Penetrated by HV Slug. 02443_ Critical hit. 02443_ Lgt. Treads destroyed. 02443_ HV Slug penetrates Wall. 02447_ Penetrated by HV Slug. 02456_ HV Slug penetrates Wall. 02460_ Penetrated by HV Slug. Map ----- +----------------------------------------------------+ | ???????????????????????????????????????????????? | | ???????????????????????????????????????????????? | | ???????????????????????????????????????????????? | | ???????????????????????????????????????????????? | | ???????????????????????????????????????????????? | | ???????????????????????????????????????????????? | | ???????????????????????????????????????????????? | | ???????????????????????????????????????????????? | | ????????????????#####??????????????????????????? | | ???????????????## ##?????????????????????????? | | ???????????????# #?????????????????????????? | | ???????????????# < #?????????????????????????? | | ???????????????# [!|###???????????????????????? | | ???????????????# !!![ #???????????????????????? | | ???????????????# ]![ ##???????????????????????? | | ???????????????## #????????????????????????? | | ????????????????# ##???????????????????????? | | ????????????????## #????????????#######????? | | ?????????????????# #######??????#!!! "#????? | | ?????????????????# #""##?????# "#????? | | ?????????????????## #?????# "#????? | | ??????????????????##" ##???## ""#????? | | ??????????????????#"" #####" ""#????? | | ??????????????????#### ## ""#????? | | ?????????????????????#; g #"" #?????? | | ?????????????????????##@;# #?????? | | ????????????????????? ;##;### ###???? | | ????????????????????# ?????### #???? | | ???????????????????# ######### #??? | | ??????????????????# #?# !!""" #??? | | ?????????????????# #??#! #### | | ????????????????# #???# "" | | ???????????????# #????#! # ! | | ??????????????# #?????# !""""""###### | | ?????????????? #??????##########?????# | | ????????????? ?????????????????????????#### | | ???????????? ?????????????????????????????### | | ????????????????????????????????????????????## | | ?????????????????????????????????????????????## | | ??????????????????????????????????????????????## | | ???????????????????????????????????????????????# | | ??????????????????????????????????????????????## | | ??????????????????????????????????????????????#" | | ?????????????????????????????????????????????##" | | ?????????????????????????????????????????????#"" | | ?????????????????????????????????????????????#"" | | ?????????????????????????????????????????????#"" | | ?????????????????????????????????????????????#"" | | ?????????????????????????????????????????????#"" | | ?????????????????????????????????????????????##" | +----------------------------------------------------+ Best States ------------- Heat Dissipation 25 Energy Generation 10 Energy Capacity 250 Matter Stores 300 Matter Capacity 300 Sight Range 16 Terrain Scan Density 10 Evasion (%) 50 Recoil Reduction 2 Item Schematics ----------------- None Robot Schematics ------------------ None Fabricated ------------ Nothing Alien Tech Used ----------------- None Achievements -------------- None Challenges ------------ None Game ------ Seed PrecisionSignalSword Manual? 0 Play Time 00:27:50 Cumulative 251.9 hours Start 2020.12.29 @ 01:44:50 End 2020.12.29 @ 02:15:35 Sessions 1 Manual Loads 0 Difficulty Rogue Special Mode None Game No. 93 Rogue 89 Adventurer 4 Explorer 0 Win Type - Total 3 Types 2/0/1/0/0/0/0/0/0 Lore% 65 Gallery% 75 Achievement% 60 Wizard Run 0 Options --------- ASCII 0 Keyboard 0 Movement Arrows Keybinds 0 Fullscreen 1 Font 18/TerminusBold Map View 76x50 Tactical HUD 1 Map Filters NONE Filters NONE Steam 1 RUN: fea2863e-5dc6-4d69-9980-b4b3bdabb5db